fUST/lending_fUST_20251007
["ID","MTS","AMOUNT","RATE_DAILY","PERIOD"]
[389649349,1759767061031,-500.0,0.00021095,2]
[389649350,1759767061045,-500.0,0.00021095,2]
[389649351,1759767061055,-500.0,0.00021095,2]
[389649352,1759767061065,-500.0,0.00021095,2]
[389649354,1759767061075,-500.0,0.00021095,2]
[389649355,1759767061086,-500.0,0.00021095,2]
[389649356,1759767061096,-500.0,0.00021095,2]
[389649357,1759767061106,-1201.45,0.00021095,2]
[389649358,1759767061116,-500.0,0.00021095,2]
[389649359,1759767061126,-479.25065136,0.00021095,2]
[389649360,1759767061136,-500.0,0.00021095,2]
[389649361,1759767061145,-500.0,0.00021095,2]
[389649363,1759767061155,-500.0,0.00021095,2]
[389649364,1759767061165,-500.0,0.00021095,2]
[389649365,1759767061175,-1059.46,0.00021095,2]
[389649366,1759767061185,-1068.08,0.00021095,2]
[389649367,1759767061195,-500.0,0.00021095,2]
[389649368,1759767061205,-500.0,0.00021095,2]
[389649369,1759767061215,-564.81,0.00021095,2]
[389649370,1759767061224,-500.0,0.00021095,2]
[389649372,1759767061233,-1075.47,0.00021095,2]
[389649373,1759767061243,-500.0,0.00021095,2]
[389649374,1759767061252,-500.0,0.00021095,2]
[389649375,1759767061262,-500.0,0.00021095,2]
[389649376,1759767061271,-500.0,0.00021095,2]
[389649377,1759767061281,-500.0,0.00021095,2]
[389649378,1759767061290,-338.2195988,0.00021095,2]
[389649380,1759767061300,-1188.26,0.00021095,2]
[389649381,1759767061310,-550.14746957,0.00021095,2]
[389649382,1759767061319,-874.79,0.00021095,2]
[389649383,1759767061330,-500.0,0.00021095,2]
[389649384,1759767061340,-1743.05,0.00021095,2]
[389649385,1759767061350,-590.46,0.00021095,2]
[389649386,1759767061360,-1342.72,0.00021095,2]
[389649387,1759767061370,-500.0,0.00021095,2]
[389649389,1759767061380,-801.38,0.00021095,2]
[389649390,1759767061389,-520.52,0.00021095,2]
[389649391,1759767061399,-566.39,0.00021095,2]
[389649392,1759767061409,-1020.43,0.00021095,2]
[389649393,1759767061419,-534.37,0.00021095,2]
[389649394,1759767061429,-612.54,0.00021095,2]
[389649395,1759767061439,-500.0,0.00021095,2]
[389649397,1759767061449,-665.81,0.00021095,2]
[389649398,1759767061458,-500.0,0.00021095,2]
[389649399,1759767061468,-4890.47,0.00021095,2]
[389649400,1759767061477,-988.39,0.00021095,2]
[389649401,1759767061487,-3211.78,0.00021095,2]
[389649402,1759767061497,-500.0,0.00021095,2]
[389649403,1759767061507,-500.0,0.00021095,2]
[389649404,1759767061517,-504.68,0.00021095,2]
[389649406,1759767061528,-500.0,0.00021095,2]
[389649407,1759767061537,-1164.13,0.00021095,2]
[389649408,1759767061546,-1461.14,0.00021095,2]
[389649409,1759767061556,-614.43,0.00021095,2]
[389649410,1759767061566,-500.0,0.00021095,2]
[389649411,1759767061575,-873.82,0.00021095,2]
[389649412,1759767061586,-500.0,0.00021095,2]
[389649414,1759767061595,-1756.41,0.00021095,2]
[389649415,1759767061606,-548.11,0.00021095,2]
[389649416,1759767061615,-500.0,0.00021095,2]
[389649417,1759767061625,-741.0,0.00021095,2]
[389649418,1759767061635,-500.0,0.00021095,2]
[389649419,1759767061645,-1292.37,0.00021095,2]
[389649420,1759767061654,-1057.32,0.00021095,2]
[389649422,1759767061664,-1192.5,0.00021095,2]
[389649423,1759767061674,-500.0,0.00021095,2]
[389649424,1759767061683,-500.0,0.00021095,2]
[389649425,1759767061692,-2502.01,0.00021095,2]
[389649426,1759767061702,-735.61,0.00021095,2]
[389649427,1759767061712,-500.0,0.00021095,2]
[389649428,1759767061722,-889.67,0.00021095,2]
[389649429,1759767061732,-500.0,0.00021095,2]
[389649431,1759767061742,-4247.91,0.00021095,2]
[389649432,1759767061751,-1077.11,0.00021095,2]
[389649433,1759767061761,-10027.14,0.00021095,2]
[389649434,1759767061771,-3687.49,0.00021095,2]
[389649435,1759767061781,-500.0,0.00021095,2]
[389649436,1759767061791,-743.19,0.00021095,2]
[389649437,1759767061802,-1944.29,0.00021095,2]
[389649438,1759767061812,-559.02,0.00021095,2]
[389649440,1759767061823,-697.83,0.00021095,2]
[389649441,1759767061832,-500.0,0.00021095,2]
[389649442,1759767061842,-580.0,0.00021095,2]
[389649443,1759767061852,-619.74,0.00021095,2]
[389649444,1759767061863,-500.0,0.00021095,2]
[389649445,1759767061873,-860.18,0.00021095,2]
[389649446,1759767061883,-500.0,0.00021095,2]
[389649447,1759767061893,-1426.97,0.00021095,2]
[389649449,1759767061903,-660.26,0.00021095,2]
[389649450,1759767061913,-1691.79,0.00021095,2]
[389649451,1759767061923,-551.82,0.00021095,2]
[389649452,1759767061934,-500.0,0.00021095,2]
[389649453,1759767061943,-1454.51,0.00021095,2]
[389649454,1759767061953,-10078.61,0.00021095,2]
[389649455,1759767061963,-500.0,0.00021095,2]
[389649457,1759767061973,-6117.42,0.00021095,2]
[389649458,1759767061983,-500.0,0.00021095,2]
[389649459,1759767061993,-2736.04,0.00021095,2]
[389649460,1759767062003,-500.0,0.00021095,2]
[389649461,1759767062013,-229.9632862,0.00021096,2]
[389649462,1759767062023,-851.0,0.00021096,2]
[389649463,1759767062037,-274.20605608,0.00021096,2]
[389649465,1759767062048,-151.0,0.00021096,2]
[389649466,1759767062058,-178.76206442,0.00021096,2]
[389649467,1759767062067,-1124.02490268,0.00021116,2]
[389649468,1759767062079,-2000.0,0.00021116,2]
[389649469,1759767062089,-2000.0,0.00021116,2]
[389649470,1759767062099,-8939.10130089,0.00021186,2]
[389649471,1759767062111,-208.0,0.000212,2]
[389649473,1759767062123,-208.0,0.0002122,2]
[389649474,1759767062133,-1500.0,0.00021243,2]
[389649475,1759767062143,-208.0,0.00021285,2]
[389649476,1759767062152,-1500.0,0.00021338,2]
[389649477,1759767062162,-500.0,0.00021367,2]
[389649478,1759767062171,-500.0,0.00021369,2]
[389649479,1759767062181,-500.0,0.00021369,2]
[389649480,1759767062190,-660.28,0.00021369,2]
[389649482,1759767062200,-500.0,0.00021369,2]
[389649483,1759767062210,-715.95,0.00021369,2]
[389649484,1759767062219,-163.42,0.00021369,2]
[389649485,1759767062229,-500.0,0.00021369,2]
[389649486,1759767062239,-500.0,0.00021369,2]
[389649487,1759767062248,-1298.82,0.00021369,2]
[389649488,1759767062258,-1584.28,0.00021369,2]
[389649489,1759767062268,-162.06452163,0.00021369,2]
[389649490,1759767062278,-500.0,0.00021369,2]
[389649492,1759767062287,-186.03958275,0.00021369,2]
[389649493,1759767062297,-444.34,0.00021369,2]
[389649494,1759767062306,-500.0,0.00021369,2]
[389649495,1759767062316,-500.0,0.00021369,2]
[389649496,1759767062325,-500.0,0.00021369,2]
[389649497,1759767062336,-341.91029756,0.00021369,2]
[389649498,1759767062346,-1201.45,0.00021369,2]
[389649500,1759767062355,-500.0,0.00021369,2]
[389649501,1759767062364,-500.0,0.00021369,2]
[389649502,1759767062374,-500.0,0.00021369,2]
[389649503,1759767062384,-500.0,0.00021369,2]
[389649504,1759767062394,-500.0,0.00021369,2]
[389649505,1759767062404,-1059.46,0.00021369,2]
[389649506,1759767062414,-1068.08,0.00021369,2]
[389649507,1759767062424,-500.0,0.00021369,2]
[389649509,1759767062435,-500.0,0.00021369,2]
[389649510,1759767062445,-564.81,0.00021369,2]
[389649511,1759767062454,-500.0,0.00021369,2]
[389649512,1759767062464,-1075.47,0.00021369,2]
[389649513,1759767062473,-500.0,0.00021369,2]
[389649514,1759767062483,-500.0,0.00021369,2]
[389649515,1759767062493,-500.0,0.00021369,2]
[389649517,1759767062535,-500.0,0.00021369,2]
[389649518,1759767062544,-500.0,0.00021369,2]
[389649519,1759767062553,-1188.26,0.00021369,2]
[389649520,1759767062563,-874.79,0.00021369,2]
[389649521,1759767062572,-500.0,0.00021369,2]
[389649522,1759767062582,-1743.05,0.00021369,2]
[389649523,1759767062592,-590.46,0.00021369,2]
[389649525,1759767062603,-1342.72,0.00021369,2]
[389649526,1759767062613,-594.94798172,0.00021369,2]
[389649527,1759767062623,-801.38,0.00021369,2]
[389649528,1759767062634,-520.52,0.00021369,2]
[389649529,1759767062645,-566.39,0.00021369,2]
[389649530,1759767062655,-1020.43,0.00021369,2]
[389649531,1759767062665,-534.37,0.00021369,2]
[389649532,1759767062675,-612.54,0.00021369,2]
[389649534,1759767062685,-500.0,0.00021369,2]
[389649535,1759767062695,-665.81,0.00021369,2]
[389649536,1759767062705,-500.0,0.00021369,2]
[389649537,1759767062715,-4890.47,0.00021369,2]
[389649538,1759767062725,-988.39,0.00021369,2]
[389649539,1759767062734,-3211.78,0.00021369,2]
[389649540,1759767062743,-500.0,0.00021369,2]
[389649541,1759767062752,-500.0,0.00021369,2]
[389649543,1759767062762,-504.68,0.00021369,2]
[389649544,1759767062773,-500.0,0.00021369,2]
[389649545,1759767062783,-1164.13,0.00021369,2]
[389649546,1759767062792,-1461.14,0.00021369,2]
[389649547,1759767062801,-614.43,0.00021369,2]
[389649548,1759767062811,-500.0,0.00021369,2]
[389649549,1759767062820,-873.82,0.00021369,2]
[389649550,1759767062829,-500.0,0.00021369,2]
[389649552,1759767062839,-1756.41,0.00021369,2]
[389649553,1759767062850,-548.11,0.00021369,2]
[389649554,1759767062860,-500.0,0.00021369,2]
[389649555,1759767062870,-741.0,0.00021369,2]
[389649556,1759767062879,-500.0,0.00021369,2]
[389649557,1759767062888,-1292.37,0.00021369,2]
[389649558,1759767062899,-1057.32,0.00021369,2]
[389649559,1759767062909,-1192.5,0.00021369,2]
[389649561,1759767062918,-500.0,0.00021369,2]
[389649562,1759767062928,-500.0,0.00021369,2]
[389649563,1759767062937,-2502.01,0.00021369,2]
[389649564,1759767062947,-735.61,0.00021369,2]
[389649565,1759767062956,-500.0,0.00021369,2]
[389649566,1759767062965,-889.67,0.00021369,2]
[389649567,1759767062974,-500.0,0.00021369,2]
[389649568,1759767062983,-4247.91,0.00021369,2]
[389649570,1759767062993,-1077.11,0.00021369,2]
[389649571,1759767063002,-10027.14,0.00021369,2]
[389649572,1759767063012,-3687.49,0.00021369,2]
[389649573,1759767063021,-500.0,0.00021369,2]
[389649574,1759767063033,-743.19,0.00021369,2]
[389649575,1759767063044,-1944.29,0.00021369,2]
[389649576,1759767063053,-559.02,0.00021369,2]
[389649578,1759767063063,-697.83,0.00021369,2]
[389649579,1759767063074,-500.0,0.00021369,2]
[389649580,1759767063084,-580.0,0.00021369,2]
[389649581,1759767063094,-619.74,0.00021369,2]
[389649582,1759767063103,-500.0,0.00021369,2]
[389649583,1759767063115,-860.18,0.00021369,2]
[389649584,1759767063124,-500.0,0.00021369,2]
[389649585,1759767063134,-1426.97,0.00021369,2]
[389649586,1759767063144,-660.26,0.00021369,2]
[389649588,1759767063153,-1691.79,0.00021369,2]
[389649589,1759767063163,-551.82,0.00021369,2]
[389649590,1759767063172,-500.0,0.00021369,2]
[389649591,1759767063181,-1454.51,0.00021369,2]
[389649592,1759767063191,-10078.61,0.00021369,2]
[389649593,1759767063201,-500.0,0.00021369,2]
[389649594,1759767063212,-6117.42,0.00021369,2]
[389649595,1759767063222,-500.0,0.00021369,2]
[389649597,1759767063232,-2736.04,0.00021369,2]
[389649598,1759767063242,-500.0,0.00021369,2]
[389649599,1759767063252,-851.0,0.0002137,2]
[389649600,1759767063263,-151.0,0.0002137,2]
[389649601,1759767063273,-260.0,0.00021394,2]
[389649602,1759767063283,-500.0,0.00021481,2]
[389649603,1759767063293,-500.0,0.00021481,2]
[389649604,1759767063304,-500.0,0.00021481,2]
[389649605,1759767063318,-500.0,0.00021481,2]
[389649607,1759767063333,-500.0,0.00021481,2]
[389649608,1759767063344,-500.0,0.00021481,2]
[389649609,1759767063353,-500.0,0.00021481,2]
[389649610,1759767063362,-517.82455242,0.00021481,2]
[389649611,1759767063371,-500.0,0.00021481,2]
[389649612,1759767063381,-500.0,0.00021481,2]
[389649613,1759767063391,-500.0,0.00021481,2]
[389649614,1759767063400,-500.0,0.00021481,2]
[389649615,1759767063410,-500.0,0.00021481,2]
[389649617,1759767063419,-500.0,0.00021481,2]
[389649618,1759767063429,-500.0,0.00021481,2]
[389649619,1759767063438,-500.0,0.00021481,2]
[389649620,1759767063447,-500.0,0.00021481,2]
[389649621,1759767063457,-510.41421693,0.00021481,2]
[389649622,1759767063467,-176.3596545,0.00021481,2]
[389649623,1759767063477,-500.0,0.00021481,2]
[389649624,1759767063486,-627.65958044,0.00021481,2]
[389649625,1759767063496,-500.0,0.00021481,2]
[389649627,1759767063505,-500.19460652,0.00021481,2]
[389649628,1759767063514,-500.0,0.00021481,2]
[389649629,1759767063524,-500.0,0.00021481,2]
[389649630,1759767063534,-500.0,0.00021481,2]
[389649631,1759767063543,-500.0,0.00021481,2]
[389649632,1759767063552,-526.56730868,0.00021481,2]
[389649633,1759767063562,-161.53575302,0.00021481,2]
[389649634,1759767063572,-163.90357586,0.00021481,2]
[389649635,1759767063585,-500.0,0.00021481,2]
[389649637,1759767063594,-500.0,0.00021481,2]
[389649638,1759767063604,-500.0,0.00021481,2]
[389649639,1759767063613,-500.0,0.00021481,2]
[389649640,1759767063623,-500.0,0.00021481,2]
[389649641,1759767063633,-500.0,0.00021481,2]
[389649642,1759767063643,-500.0,0.00021481,2]
[389649643,1759767063654,-500.0,0.00021481,2]
[389649644,1759767063663,-500.0,0.00021481,2]
[389649645,1759767063673,-500.0,0.00021481,2]
[389649647,1759767063683,-527.02484595,0.00021481,2]
[389649648,1759767063692,-500.0,0.00021481,2]
[389649649,1759767063701,-170.89714805,0.00021481,2]
[389649650,1759767063710,-530.71060533,0.00021481,2]
[389649651,1759767063720,-500.0,0.00021481,2]
[389649652,1759767063729,-500.0,0.00021481,2]
[389649653,1759767063737,-500.0,0.00021481,2]
[389649654,1759767063746,-203.63507439,0.00021481,2]
[389649655,1759767063756,-12683.39803595,0.000215,2]
[389649656,1759767063765,-720.0,0.00021517,20]
[389649658,1759767063775,-381.431,0.00021567,2]
[389649659,1759767063785,-208.0,0.00021571,2]
[389649660,1759767063794,-208.0,0.00021572,2]
[389649661,1759767063804,-500.0,0.00021582,2]
[389649662,1759767063813,-387.44975547,0.00021641,2]
[389649663,1759767063822,-500.0,0.00021643,2]
[389649664,1759767063834,-500.0,0.00021643,2]
[389649665,1759767063844,-660.28,0.00021643,2]
[389649667,1759767063854,-500.0,0.00021643,2]
[389649668,1759767063863,-715.95,0.00021643,2]
[389649669,1759767063872,-500.0,0.00021643,2]
[389649670,1759767063882,-500.0,0.00021643,2]
[389649671,1759767063892,-1298.82,0.00021643,2]
[389649672,1759767063901,-1584.28,0.00021643,2]
[389649673,1759767063911,-500.0,0.00021643,2]
[389649674,1759767063920,-500.0,0.00021643,2]
[389649675,1759767063930,-500.0,0.00021643,2]
[389649677,1759767063939,-500.0,0.00021643,2]
[389649678,1759767063948,-1201.45,0.00021643,2]
[389649679,1759767063959,-500.0,0.00021643,2]
[389649680,1759767063968,-500.0,0.00021643,2]
[389649681,1759767063978,-500.0,0.00021643,2]
[389649682,1759767063988,-500.0,0.00021643,2]
[389649683,1759767063997,-500.0,0.00021643,2]
[389649684,1759767064007,-1059.46,0.00021643,2]
[389649685,1759767064017,-1068.08,0.00021643,2]
[389649687,1759767064027,-500.0,0.00021643,2]
[389649688,1759767064042,-500.0,0.00021643,2]
[389649689,1759767064052,-564.81,0.00021643,2]
[389649690,1759767064061,-500.0,0.00021643,2]
[389649691,1759767064072,-1075.47,0.00021643,2]
[389649692,1759767064083,-500.0,0.00021643,2]
[389649693,1759767064093,-500.0,0.00021643,2]
[389649694,1759767064104,-500.0,0.00021643,2]
[389649696,1759767064117,-500.0,0.00021643,2]
[389649697,1759767064127,-500.0,0.00021643,2]
[389649698,1759767064142,-1188.26,0.00021643,2]
[389649699,1759767064152,-874.79,0.00021643,2]
[389649700,1759767064162,-246.35084122,0.00021643,2]
[389649701,1759767064172,-1743.05,0.00021643,2]
[389649702,1759767064182,-590.46,0.00021643,2]
[389649703,1759767064193,-1342.72,0.00021643,2]
[389649704,1759767064203,-801.38,0.00021643,2]
[389649705,1759767064213,-520.52,0.00021643,2]
[389649706,1759767064224,-566.39,0.00021643,2]
[389649707,1759767064233,-1020.43,0.00021643,2]
[389649708,1759767064243,-534.37,0.00021643,2]
[389649709,1759767064254,-612.54,0.00021643,2]
[389649710,1759767064264,-500.0,0.00021643,2]
[389649711,1759767064275,-665.81,0.00021643,2]
[389649712,1759767064285,-500.0,0.00021643,2]
[389649713,1759767064295,-4890.47,0.00021643,2]
[389649714,1759767064306,-988.39,0.00021643,2]
[389649715,1759767064315,-3211.78,0.00021643,2]
[389649716,1759767064325,-500.0,0.00021643,2]
[389649717,1759767064337,-500.0,0.00021643,2]
[389649718,1759767064350,-504.68,0.00021643,2]
[389649720,1759767064360,-500.0,0.00021643,2]
[389649721,1759767064370,-1164.13,0.00021643,2]
[389649722,1759767064379,-1461.14,0.00021643,2]
[389649723,1759767064388,-614.43,0.00021643,2]
[389649724,1759767064397,-500.0,0.00021643,2]
[389649725,1759767064408,-873.82,0.00021643,2]
[389649726,1759767064417,-500.0,0.00021643,2]
[389649727,1759767064427,-1756.41,0.00021643,2]
[389649728,1759767064443,-548.11,0.00021643,2]
[389649730,1759767064454,-500.0,0.00021643,2]
[389649731,1759767064465,-741.0,0.00021643,2]
[389649732,1759767064476,-500.0,0.00021643,2]
[389649733,1759767064485,-1292.37,0.00021643,2]
[389649734,1759767064496,-1057.32,0.00021643,2]
[389649735,1759767064507,-1192.5,0.00021643,2]
[389649736,1759767064516,-500.0,0.00021643,2]
[389649737,1759767064526,-500.0,0.00021643,2]
[389649739,1759767064537,-2502.01,0.00021643,2]
[389649740,1759767064547,-735.61,0.00021643,2]
[389649741,1759767064557,-500.0,0.00021643,2]
[389649742,1759767064566,-889.67,0.00021643,2]
[389649743,1759767064576,-500.0,0.00021643,2]
[389649744,1759767064588,-4247.91,0.00021643,2]
[389649745,1759767064597,-1077.11,0.00021643,2]
[389649746,1759767064607,-10027.14,0.00021643,2]
[389649748,1759767064617,-3687.49,0.00021643,2]
[389649749,1759767064626,-404.8930515,0.00021643,2]
[389649750,1759767064636,-743.19,0.00021643,2]
[389649751,1759767064645,-1944.29,0.00021643,2]
[389649752,1759767064655,-559.02,0.00021643,2]
[389649753,1759767064665,-697.83,0.00021643,2]
[389649754,1759767064674,-645.44415511,0.00021643,2]
[389649755,1759767064684,-580.0,0.00021643,2]
[389649757,1759767064694,-619.74,0.00021643,2]
[389649758,1759767064703,-500.0,0.00021643,2]
[389649759,1759767064713,-860.18,0.00021643,2]
[389649760,1759767064723,-500.0,0.00021643,2]
[389649761,1759767064733,-1426.97,0.00021643,2]
[389649762,1759767064744,-660.26,0.00021643,2]
[389649763,1759767064754,-1691.79,0.00021643,2]
[389649764,1759767064764,-551.82,0.00021643,2]
[389649765,1759767064774,-500.0,0.00021643,2]
[389649767,1759767064785,-1454.51,0.00021643,2]
[389649768,1759767064795,-10078.61,0.00021643,2]
[389649769,1759767064805,-500.0,0.00021643,2]
[389649770,1759767064815,-6117.42,0.00021643,2]
[389649771,1759767064826,-500.0,0.00021643,2]
[389649772,1759767064837,-2736.04,0.00021643,2]
[389649773,1759767064847,-500.0,0.00021643,2]
[389649774,1759767064857,-851.0,0.00021644,2]
[389649776,1759767064867,-245.0,0.00021644,2]
[389649777,1759767064877,-2500.0,0.00021664,2]
[389649778,1759767064886,-2500.0,0.00021664,2]
[389649779,1759767064897,-2000.0,0.00021791,2]
[389649780,1759767064907,-208.0,0.00021807,2]
[389649781,1759767064917,-500.0,0.00021848,2]
[389649782,1759767064927,-2000.0,0.00021886,2]
[389649783,1759767064936,-500.0,0.00021917,2]
[389649785,1759767064946,-500.0,0.00021917,2]
[389649786,1759767064956,-660.28,0.00021917,2]
[389649787,1759767064966,-500.0,0.00021917,2]
[389649788,1759767064976,-715.95,0.00021917,2]
[389649789,1759767064986,-500.0,0.00021917,2]
[389649790,1759767064996,-500.0,0.00021917,2]
[389649791,1759767065006,-1298.82,0.00021917,2]
[389649792,1759767065017,-1584.28,0.00021917,2]
[389649793,1759767065027,-500.0,0.00021917,2]
[389649795,1759767065040,-500.0,0.00021917,2]
[389649796,1759767065050,-500.0,0.00021917,2]
[389649797,1759767065060,-500.0,0.00021917,2]
[389649798,1759767065071,-1201.45,0.00021917,2]
[389649799,1759767065081,-500.0,0.00021917,2]
[389649800,1759767065092,-167.8,0.00021917,2]
[389649801,1759767065104,-500.0,0.00021917,2]
[389649802,1759767065115,-500.0,0.00021917,2]
[389649804,1759767065125,-500.0,0.00021917,2]
[389649805,1759767065135,-1059.46,0.00021917,2]
[389649806,1759767065147,-1068.08,0.00021917,2]
[389649807,1759767065157,-500.0,0.00021917,2]
[389649808,1759767065167,-191.06019974,0.00021917,2]
[389649809,1759767065178,-564.81,0.00021917,2]
[389649810,1759767065188,-500.0,0.00021917,2]
[389649811,1759767065198,-500.0,0.00021917,2]
[389649813,1759767065207,-500.0,0.00021917,2]
[389649814,1759767065217,-500.0,0.00021917,2]
[389649815,1759767065229,-500.0,0.00021917,2]
[389649816,1759767065239,-500.0,0.00021917,2]
[389649817,1759767065249,-531.87567412,0.00021917,2]
[389649818,1759767065259,-358.23249099,0.00021917,2]
[389649819,1759767065270,-1075.47,0.00021917,2]
[389649820,1759767065280,-500.0,0.00021917,2]
[389649822,1759767065290,-500.0,0.00021917,2]
[389649823,1759767065300,-500.0,0.00021917,2]
[389649824,1759767065310,-500.0,0.00021917,2]
[389649825,1759767065319,-500.0,0.00021917,2]
[389649826,1759767065333,-1188.26,0.00021917,2]
[389649827,1759767065344,-874.79,0.00021917,2]
[389649828,1759767065354,-1743.05,0.00021917,2]
[389649829,1759767065363,-590.46,0.00021917,2]
[389649831,1759767065374,-1342.72,0.00021917,2]
[389649832,1759767065384,-801.38,0.00021917,2]
[389649833,1759767065395,-520.52,0.00021917,2]
[389649834,1759767065405,-566.39,0.00021917,2]
[389649835,1759767065416,-1020.43,0.00021917,2]
[389649836,1759767065426,-534.37,0.00021917,2]
[389649837,1759767065437,-612.54,0.00021917,2]
[389649839,1759767065447,-500.0,0.00021917,2]
[389649840,1759767065458,-665.81,0.00021917,2]
[389649841,1759767065468,-406.56,0.00021917,2]
[389649842,1759767065478,-4890.47,0.00021917,2]
[389649843,1759767065488,-988.39,0.00021917,2]
[389649844,1759767065498,-3211.78,0.00021917,2]
[389649845,1759767065509,-500.0,0.00021917,2]
[389649846,1759767065519,-500.0,0.00021917,2]
[389649848,1759767065529,-504.68,0.00021917,2]
[389649849,1759767065540,-500.0,0.00021917,2]
[389649850,1759767065550,-1164.13,0.00021917,2]
[389649851,1759767065560,-1461.14,0.00021917,2]
[389649852,1759767065570,-614.43,0.00021917,2]
[389649853,1759767065580,-500.0,0.00021917,2]
[389649854,1759767065590,-873.82,0.00021917,2]
[389649855,1759767065601,-500.0,0.00021917,2]
[389649857,1759767065611,-1756.41,0.00021917,2]
[389649858,1759767065621,-548.11,0.00021917,2]
[389649859,1759767065631,-500.0,0.00021917,2]
[389649860,1759767065642,-741.0,0.00021917,2]
[389649861,1759767065652,-500.0,0.00021917,2]
[389649862,1759767065662,-1292.37,0.00021917,2]
[389649863,1759767065672,-1057.32,0.00021917,2]
[389649865,1759767065682,-1192.5,0.00021917,2]
[389649866,1759767065692,-500.0,0.00021917,2]
[389649867,1759767065701,-500.0,0.00021917,2]
[389649868,1759767065711,-2502.01,0.00021917,2]
[389649869,1759767065721,-600.0,0.00021917,2]
[389649870,1759767065731,-600.0,0.00021917,2]
[389649871,1759767065740,-698.61524067,0.00021917,2]
[389649872,1759767065750,-735.61,0.00021917,2]
[389649874,1759767065760,-500.0,0.00021917,2]
[389649875,1759767065770,-889.67,0.00021917,2]
[389649876,1759767065779,-500.0,0.00021917,2]
[389649877,1759767065788,-4247.91,0.00021917,2]
[389649878,1759767065798,-1077.11,0.00021917,2]
[389649879,1759767065808,-576.94,0.00021917,2]
[389649880,1759767065818,-576.94,0.00021917,2]
[389649881,1759767065828,-576.94,0.00021917,2]
[389649883,1759767065839,-576.94,0.00021917,2]
[389649884,1759767065849,-576.94,0.00021917,2]
[389649885,1759767065860,-576.94,0.00021917,2]
[389649886,1759767065870,-10027.14,0.00021917,2]
[389649887,1759767065881,-576.94,0.00021917,2]
[389649888,1759767065891,-576.94,0.00021917,2]
[389649889,1759767065902,-3687.49,0.00021917,2]
[389649890,1759767065911,-576.94,0.00021917,2]
[389649892,1759767065921,-576.94,0.00021917,2]
[389649893,1759767065931,-576.94,0.00021917,2]
[389649894,1759767065940,-743.19,0.00021917,2]
[389649895,1759767065950,-1944.29,0.00021917,2]
[389649896,1759767065960,-559.02,0.00021917,2]
[389649897,1759767065970,-697.83,0.00021917,2]
[389649898,1759767065980,-580.0,0.00021917,2]
[389649899,1759767065990,-619.74,0.00021917,2]
[389649900,1759767066000,-500.0,0.00021917,2]
[389649902,1759767066010,-860.18,0.00021917,2]
[389649903,1759767066020,-500.0,0.00021917,2]
[389649904,1759767066030,-1426.97,0.00021917,2]
[389649905,1759767066043,-660.26,0.00021917,2]
[389649906,1759767066052,-1691.79,0.00021917,2]
[389649907,1759767066063,-551.82,0.00021917,2]
[389649908,1759767066073,-1454.51,0.00021917,2]